[Event "Marienbad Open-B1 2019"]
[Site "Marianske Lazne"]
[Date "2019.01.22"]
[Round "5"]
[White "Kornitzky, Tino"]
[Black "Voinikonis, Nikita"]
[Result "0-1"]
[ECO "D85"]
[WhiteElo "2133"]
[BlackElo "2163"]
[Annotator "NA"]
[PlyCount "92"]
[EventDate "2019.01.17"]
[EventType "tourn"]
[EventCountry "CZE"]
[SourceTitle "playchess.com"]
[Source "ChessBase"]
[SourceQuality "1"]
[TimeControl "40/5400+30:1800+30"]

1. d4 {[%emt 0:00:00]} Nf6 {[%emt 0:02:34]} 2. c4 {[%emt 0:00:00]} g6 {[%emt 0:00:07]} 3. Nc3 {[%emt 0:00:00]} d5 {[%emt 0:00:07]} 4. cxd5 {[%emt 0:00:00]} Nxd5 {[%emt 0:00:05]} 5. e4 {[%emt 0:00:03]} Nxc3 {[%emt 0:00:04]} 6. bxc3 {[%emt 0:00:02]} Bg7 {[%emt 0:00:08]} 7. Nf3 {[%emt 0:00:06]} c5 {[%emt 0:00:07]} 8. Be3 {[%emt 0:00:09]} Qa5 {[%emt 0:00:19]} 9. Nd2 {[%emt 0:00:41]} cxd4 {[%emt 0:01:29]} 10. Nc4 {[%emt 0:00:15]} Qd8 {[%emt 0:00:12]} 11. cxd4 {[%emt 0:00:05]} O-O {[%emt 0:00:45]} 12. Rc1 {[%emt 0:00:49]} f5 {[%emt 0:05:33]} 13. exf5 {[%emt 0:09:12]} gxf5 {[%emt 0:03:09]} 14. Ne5 {[%emt 0:25:31]} Be6 {[%emt 0:11:00]} 15. f4 {[%emt 0:15:41]} Bxa2 {[%emt 0:07:32]} 16. Bd3 {[%emt 0:08:32]} Bd5 {[%emt 0:01:29]} 17. O-O {[%emt 0:02:35]} Nc6 {[%emt 0:01:40]} 18. Qh5 {[%emt 0:08:44]} Qe8 {[%emt 0:03:08]} 19. Qh3 {[%emt 0:02:25]} e6 {[%emt 0:01:48]} 20. Rc5 {[%emt 0:03:55]} Rd8 {[%emt 0:06:09]} 21. Rb1 {[%emt 0:02:51]} Nxe5 {[%emt 0:04:04]} 22. fxe5 {[%emt 0:01:09]} Qg6 {[%emt 0:00:21]} 23. Rbc1 {[%emt 0:05:24]} Bc6 {[%emt 0:03:42]} 24. Ra1 {[%emt 0:03:11]} a6 {[%emt 0:06:47]} 25. Rf1 {[%emt 0:01:58]} Rd5 {[%emt 0:06:17]} 26. Rc3 {[%emt 0:01:53]} Ra5 {[%emt 0:00:53]} 27. Bf4 {[%emt 0:02:34]} Ra2 {[%emt 0:08:26]} 28. Bc2 {[%emt 0:01:43]} Qg4 {[%emt 0:04:47]} 29. Qxg4 {[%emt 0:01:34]} fxg4 {[%emt 0:00:06]} 30. g3 {[%emt 0:00:57]} Rc8 {[%emt 0:04:57]} 31. Rc1 {[%emt 0:00:55]} Rd8 {[%emt 0:02:35]} 32. Bb3 {[%emt 0:00:39]} Rg2+ {[%emt 0:02:12]} 33. Kf1 {[%emt 0:00:01]} Rxh2 {[%emt 0:00:09]} 34. Bxe6+ {[%emt 0:00:13]} Kf8 {[%emt 0:00:01]} 35. Be3 {[%emt 0:01:33]} Bh6 {[%emt 0:02:49]} 36. Bxh6+ {[%emt 0:01:20]} Rxh6 {[%emt 0:00:02]} 37. Bxg4 {[%emt 0:00:17]} Rh1+ {[%emt 0:01:34]} 38. Kf2 {[%emt 0:00:36]} Rxc1 {[%emt 0:00:17]} 39. Rxc1 {[%emt 0:00:01]} Rxd4 {[%emt 0:00:01]} 40. Bf5 {[%emt 0:00:57]} h6 {[%emt 0:03:01]} 41. g4 {[%emt 0:06:48]} a5 {[%emt 0:03:35]} 42. Ke3 {[%emt 0:01:52]} Rd5 {[%emt 0:00:49]} 43. Kf4 {[%emt 0:00:33]} a4 {[%emt 0:01:17]} 44. Be6 {[%emt 0:01:47]} Rd4+ {[%emt 0:01:27]} 45. Kf5 {[%emt 0:00:51]} Ke7 {[%emt 0:00:14]} 46. Re1 {[%emt 0:05:59]} Be4+ {[%emt 0:00:46]} 0-1

[Event "Marienbad Open-B1 2019"]
[Site "Marianske Lazne"]
[Date "2019.01.22"]
[Round "5"]
[White "Patil, Mitali"]
[Black "Sernecki, Franciszek"]
[Result "1/2-1/2"]
[ECO "B07"]
[WhiteElo "2062"]
[BlackElo "2278"]
[Annotator "NA"]
[PlyCount "105"]
[EventDate "2019.01.17"]
[EventType "tourn"]
[EventCountry "CZE"]
[SourceTitle "playchess.com"]
[Source "ChessBase"]
[SourceQuality "1"]
[TimeControl "40/5400+30:1800+30"]

1. e4 {[%emt 0:00:00]} d6 {[%emt 0:00:00]} 2. d4 {[%emt 0:00:00]} Nf6 {[%emt 0:00:00]} 3. Nc3 {[%emt 0:00:00]} c6 {[%emt 0:00:00]} 4. f4 {[%emt 0:00:00]} Qa5 {[%emt 0:00:00]} 5. Bd3 {[%emt 0:01:23]} e5 {[%emt 0:00:00]} 6. Nf3 {[%emt 0:00:05]} Nbd7 {[%emt 0:00:01]} 7. O-O {[%emt 0:02:42]} Be7 {[%emt 0:00:04]} 8. Kh1 {[%emt 0:13:10]} O-O {[%emt 0:00:38]} 9. Qe1 {[%emt 0:05:50]} Qc7 {[%emt 0:00:17]} 10. Ne2 {[%emt 0:04:14]} d5 {[%emt 0:25:57]} 11. fxe5 {[%emt 0:03:14]} dxe4 {[%emt 0:04:17]} 12. exf6 {[%emt 0:02:58]} Nxf6 {[%emt 0:00:42]} 13. Bc4 {[%emt 0:08:11]} exf3 {[%emt 0:02:46]} 14. Rxf3 {[%emt 0:00:12]} Bg4 {[%emt 0:04:16]} 15. Bf4 {[%emt 0:03:29]} Bd6 {[%emt 0:06:13]} 16. Qg3 {[%emt 0:16:04]} Rad8 {[%emt 0:15:28]} 17. Bxd6 {[%emt 0:06:46]} Qxd6 {[%emt 0:00:09]} 18. Qxd6 {[%emt 0:04:39]} Rxd6 {[%emt 0:00:02]} 19. Rf4 {[%emt 0:00:18]} c5 {[%emt 0:16:57]} 20. dxc5 {[%emt 0:03:41]} Rd2 {[%emt 0:00:32]} 21. Ng3 {[%emt 0:10:22]} Rxc2 {[%emt 0:01:29]} 22. b4 {[%emt 0:03:49]} Be6 {[%emt 0:05:58]} 23. Bxe6 {[%emt 0:01:32]} fxe6 {[%emt 0:00:01]} 24. Re1 {[%emt 0:04:42]} Rxa2 {[%emt 0:04:58]} 25. Rxe6 {[%emt 0:00:27]} Nd5 {[%emt 0:02:57]} 26. Rxf8+ {[%emt 0:02:56]} Kxf8 {[%emt 0:00:00]} 27. h3 {[%emt 0:00:45]} Rxg2 {[%emt 0:08:32]} 28. Nf5 {[%emt 0:01:20]} Rg6 {[%emt 0:00:48]} 29. Re4 {[%emt 0:00:58]} b6 {[%emt 0:00:50]} 30. Re5 {[%emt 0:00:30]} Nc7 {[%emt 0:00:30]} 31. Nd6 {[%emt 0:00:23]} bxc5 {[%emt 0:00:25]} 32. Rxc5 {[%emt 0:00:35]} Na6 {[%emt 0:00:39]} 33. Rf5+ {[%emt 0:00:35]} Kg8 {[%emt 0:00:31]} 34. Nc8 {[%emt 0:00:11]} Rf6 {[%emt 0:00:31]} 35. Rxf6 {[%emt 0:00:21]} gxf6 {[%emt 0:00:02]} 36. b5 {[%emt 0:00:06]} Nb8 {[%emt 0:00:26]} 37. Nxa7 {[%emt 0:00:11]} Kf7 {[%emt 0:00:06]} 38. Kg2 {[%emt 0:00:25]} Ke6 {[%emt 0:01:11]} 39. Kf3 {[%emt 0:01:19]} Kd6 {[%emt 0:00:28]} 40. Kf4 {[%emt 0:00:56]} Kc7 {[%emt 0:00:31]} 41. Kf5 {[%emt 0:04:37]} Kb7 {[%emt 0:00:12]} 42. Kxf6 {[%emt 0:03:39]} Kxa7 {[%emt 0:00:22]} 43. Kg7 {[%emt 0:03:23]} Nd7 {[%emt 0:00:30]} 44. Kxh7 {[%emt 0:00:28]} Ne5 {[%emt 0:02:34]} 45. h4 {[%emt 0:00:55]} Nf3 {[%emt 0:00:38]} 46. h5 {[%emt 0:00:05]} Ne5 {[%emt 0:00:03]} 47. Kg7 {[%emt 0:00:59]} Ng4 {[%emt 0:00:01]} 48. Kg6 {[%emt 0:00:32]} Kb6 {[%emt 0:00:05]} 49. Kg5 {[%emt 0:01:28]} Ne5 {[%emt 0:00:02]} 50. Kf5 {[%emt 0:00:14]} Nf7 {[%emt 0:00:06]} 51. Kf6 {[%emt 0:00:09]} Nh6 {[%emt 0:00:08]} 52. Kg6 {[%emt 0:00:34]} Ng4 {[%emt 0:00:12]} 53. Kf5 1/2-1/2

[Event "Marienbad Open-B1 2019"]
[Site "Marianske Lazne"]
[Date "2019.01.23"]
[Round "6"]
[White "Sernecki, Franciszek"]
[Black "Gorbatov, Alexej"]
[Result "1/2-1/2"]
[ECO "C15"]
[WhiteElo "2278"]
[BlackElo "2389"]
[Annotator "NA"]
[PlyCount "93"]
[EventDate "2019.01.17"]
[EventType "tourn"]
[EventCountry "CZE"]
[SourceTitle "playchess.com"]
[Source "ChessBase"]
[SourceQuality "1"]
[TimeControl "40/5400+30:1800+30"]

1. d4 {[%emt 0:00:00]} e6 {[%emt 0:00:05]} 2. e4 {[%emt 0:00:00]} d5 {[%emt 0:02:28]} 3. Nc3 {[%emt 0:00:17]} Bb4 {[%emt 0:00:24]} 4. Nge2 {[%emt 0:00:11]} Ne7 {[%emt 0:05:00]} 5. a3 {[%emt 0:01:48]} Ba5 {[%emt 0:00:06]} 6. b4 {[%emt 0:00:36]} Bb6 {[%emt 0:00:01]} 7. Bb2 {[%emt 0:01:06]} a5 {[%emt 0:02:31]} 8. g3 {[%emt 0:07:38]} axb4 {[%emt 0:02:49]} 9. axb4 {[%emt 0:00:24]} Rxa1 {[%emt 0:00:02]} 10. Qxa1 {[%emt 0:02:23]} Nbc6 {[%emt 0:09:20]} 11. Qa4 {[%emt 0:10:53]} Bd7 {[%emt 0:02:26]} 12. b5 {[%emt 0:01:20]} Na7 {[%emt 0:05:14]} 13. Bg2 {[%emt 0:18:37]} c6 {[%emt 0:00:42]} 14. Qb3 {[%emt 0:05:03]} Nxb5 {[%emt 0:07:44]} 15. Nxb5 {[%emt 0:05:53]} cxb5 {[%emt 0:00:09]} 16. exd5 {[%emt 0:10:57]} Nxd5 {[%emt 0:14:44]} 17. Ba3 {[%emt 0:10:16]} Bc6 {[%emt 0:05:56]} 18. O-O {[%emt 0:03:41]} Qd7 {[%emt 0:07:30]} 19. Rb1 {[%emt 0:04:24]} Bc7 {[%emt 0:06:48]} 20. Nc3 {[%emt 0:03:05]} Nxc3 {[%emt 0:02:51]} 21. Qxc3 {[%emt 0:00:01]} Bxg2 {[%emt 0:08:17]} 22. Kxg2 {[%emt 0:00:51]} Qc6+ {[%emt 0:04:04]} 23. Qf3 {[%emt 0:00:33]} Qxf3+ {[%emt 0:01:53]} 24. Kxf3 {[%emt 0:00:02]} Kd7 {[%emt 0:00:10]} 25. Rxb5 {[%emt 0:01:30]} Ra8 {[%emt 0:02:15]} 26. Rb3 {[%emt 0:00:55]} b5 {[%emt 0:01:45]} 27. Ke4 {[%emt 0:01:38]} Ra4 {[%emt 0:01:41]} 28. Bf8 {[%emt 0:01:01]} e5 {[%emt 0:01:48]} 29. c3 {[%emt 0:01:16]} g6 {[%emt 0:02:21]} 30. Rxb5 {[%emt 0:00:44]} f5+ {[%emt 0:01:40]} 31. Ke3 {[%emt 0:01:02]} exd4+ {[%emt 0:00:16]} 32. cxd4 {[%emt 0:00:04]} Kc6 {[%emt 0:00:19]} 33. Rc5+ {[%emt 0:01:12]} Kd7 {[%emt 0:00:07]} 34. Rc3 {[%emt 0:02:01]} Ba5 {[%emt 0:01:07]} 35. Rb3 {[%emt 0:02:56]} Kc6 {[%emt 0:00:02]} 36. Bc5 {[%emt 0:00:42]} Bc7 {[%emt 0:00:13]} 37. h3 {[%emt 0:00:45]} h5 {[%emt 0:01:00]} 38. g4 {[%emt 0:02:08]} fxg4 {[%emt 0:00:22]} 39. hxg4 {[%emt 0:00:04]} hxg4 {[%emt 0:00:07]} 40. Rb2 {[%emt 0:01:08]} Kd5 {[%emt 0:00:38]} 41. Rb7 {[%emt 0:30:33]} Kc6 {[%emt 0:31:51]} 42. Rb1 {[%emt 0:00:23]} Kd5 {[%emt 0:00:47]} 43. Rg1 {[%emt 0:00:46]} g3 {[%emt 0:01:20]} 44. fxg3 {[%emt 0:00:27]} Ra2 {[%emt 0:00:23]} 45. Kf3 {[%emt 0:00:00]} Rd2 {[%emt 0:00:00]} 46. Kg4 {[%emt 0:00:00]} Rd3 {[%emt 0:00:00]} 47. Kg5 {[%emt 0:00:00] Ke5} 1/2-1/2

[Event "Marienbad Open-B1 2019"]
[Site "Marianske Lazne"]
[Date "2019.01.23"]
[Round "6"]
[White "Mica, Marek"]
[Black "Kornitzky, Tino"]
[Result "1-0"]
[ECO "D35"]
[WhiteElo "2212"]
[BlackElo "2133"]
[Annotator "NA"]
[PlyCount "85"]
[EventDate "2019.01.17"]
[EventType "tourn"]
[EventCountry "CZE"]
[SourceTitle "playchess.com"]
[Source "ChessBase"]
[SourceQuality "1"]
[TimeControl "40/5400+30:1800+30"]

1. d4 {[%emt 0:00:00]} Nf6 {[%emt 0:00:00]} 2. c4 {[%emt 0:00:00]} e6 {[%emt 0:00:00]} 3. Nf3 {[%emt 0:00:00]} d5 {[%emt 0:00:00]} 4. Nc3 {[%emt 0:00:07]} Nbd7 {[%emt 0:00:00]} 5. Bg5 {[%emt 0:00:28]} c6 {[%emt 0:00:04]} 6. cxd5 {[%emt 0:00:08]} exd5 {[%emt 0:00:05]} 7. e3 {[%emt 0:00:13]} Be7 {[%emt 0:00:06]} 8. Bd3 {[%emt 0:00:09]} Nh5 {[%emt 0:00:13]} 9. Bxe7 {[%emt 0:00:12]} Qxe7 {[%emt 0:00:01]} 10. O-O {[%emt 0:00:15]} O-O {[%emt 0:00:13]} 11. Qb1 {[%emt 0:00:08]} Nhf6 {[%emt 0:00:05]} 12. b4 {[%emt 0:00:17]} a6 {[%emt 0:00:14]} 13. a4 {[%emt 0:00:17]} Re8 {[%emt 0:00:14]} 14. Rc1 {[%emt 0:00:26]} g6 {[%emt 0:00:19]} 15. Qb2 {[%emt 0:00:26]} Qd6 {[%emt 0:03:03]} 16. h3 {[%emt 0:04:56]} Kg7 {[%emt 0:06:14]} 17. Nd2 {[%emt 0:04:15]} h6 {[%emt 0:06:02]} 18. Be2 {[%emt 0:11:45]} Kg8 {[%emt 0:06:06]} 19. Bf3 {[%emt 0:03:09]} Nf8 {[%emt 0:11:24]} 20. b5 {[%emt 0:01:31]} Ne6 {[%emt 0:05:28]} 21. bxc6 {[%emt 0:01:23]} bxc6 {[%emt 0:00:09]} 22. Qa3 {[%emt 0:02:02]} Qd8 {[%emt 0:03:10]} 23. Na2 {[%emt 0:05:44]} Bb7 {[%emt 0:07:24]} 24. Nb4 {[%emt 0:01:30]} Rc8 {[%emt 0:01:28]} 25. Nd3 {[%emt 0:00:43]} Ng5 {[%emt 0:02:11]} 26. Nc5 {[%emt 0:01:00]} Ba8 {[%emt 0:03:45]} 27. a5 {[%emt 0:04:01]} Nfe4 {[%emt 0:04:15]} 28. Ncxe4 {[%emt 0:07:46]} Nxe4 {[%emt 0:02:32]} 29. Bxe4 {[%emt 0:04:51]} dxe4 {[%emt 0:00:03]} 30. Nb3 {[%emt 0:00:32]} Qh4 {[%emt 0:02:05]} 31. Nc5 {[%emt 0:01:53]} Red8 {[%emt 0:02:22]} 32. Nxa6 {[%emt 0:02:07]} Rd5 {[%emt 0:01:33]} 33. Rc5 {[%emt 0:02:37]} Rf5 {[%emt 0:01:36]} 34. Rxf5 {[%emt 0:01:52]} gxf5 {[%emt 0:00:01]} 35. Qc5 {[%emt 0:01:28]} Qg5 {[%emt 0:00:46]} 36. Qe5 {[%emt 0:01:10]} Kh7 {[%emt 0:01:23]} 37. Qg3 {[%emt 0:00:39]} Qf6 {[%emt 0:00:15]} 38. Nc5 {[%emt 0:01:22]} Rg8 {[%emt 0:01:36]} 39. Qf4 {[%emt 0:00:15]} Qg6 {[%emt 0:00:52]} 40. g3 {[%emt 0:00:09]} Qh5 {[%emt 0:00:33]} 41. Kg2 {[%emt 0:30:18]} Qg6 {[%emt 0:31:39]} 42. a6 {[%emt 0:02:12]} Rd8 {[%emt 0:01:52]} 43. Rb1 {[%emt 0:01:10]} 1-0

[Event "Marienbad Open-B1 2019"]
[Site "Marianske Lazne"]
[Date "2019.01.23"]
[Round "6"]
[White "Voinikonis, Nikita"]
[Black "Baum, Jonasz"]
[Result "0-1"]
[ECO "D36"]
[WhiteElo "2163"]
[BlackElo "2302"]
[Annotator "NA"]
[PlyCount "100"]
[EventDate "2019.01.17"]
[EventType "tourn"]
[EventCountry "CZE"]
[SourceTitle "playchess.com"]
[Source "ChessBase"]
[SourceQuality "1"]
[TimeControl "40/5400+30:1800+30"]

1. d4 {[%emt 0:00:00]} d5 {[%emt 0:00:00]} 2. c4 {[%emt 0:00:00]} e6 {[%emt 0:00:00]} 3. Nc3 {[%emt 0:00:00]} Nf6 {[%emt 0:00:00]} 4. cxd5 {[%emt 0:00:34]} exd5 {[%emt 0:00:00]} 5. Bg5 {[%emt 0:00:06]} Nbd7 {[%emt 0:00:19]} 6. e3 {[%emt 0:00:18]} c6 {[%emt 0:00:08]} 7. Bd3 {[%emt 0:00:16]} Be7 {[%emt 0:00:19]} 8. Nge2 {[%emt 0:01:31]} Nh5 {[%emt 0:00:21]} 9. Bxe7 {[%emt 0:00:11]} Qxe7 {[%emt 0:00:06]} 10. Qc2 {[%emt 0:00:14]} g6 {[%emt 0:00:13]} 11. O-O {[%emt 0:01:10]} Ndf6 {[%emt 0:00:28]} 12. Rab1 {[%emt 0:01:52]} O-O {[%emt 0:02:48]} 13. Na4 {[%emt 0:06:19]} Ng7 {[%emt 0:04:20]} 14. Qc5 {[%emt 0:02:59]} Qc7 {[%emt 0:05:20]} 15. b4 {[%emt 0:01:54]} Ne6 {[%emt 0:10:05]} 16. Qc2 {[%emt 0:05:25]} Ng4 {[%emt 0:06:50]} 17. Ng3 {[%emt 0:03:44]} h5 {[%emt 0:08:32]} 18. Rfe1 {[%emt 0:05:54]} Nxh2 {[%emt 0:04:10]} 19. Kxh2 {[%emt 0:01:12]} h4 {[%emt 0:00:04]} 20. e4 {[%emt 0:12:46]} hxg3+ {[%emt 0:06:16]} 21. fxg3 {[%emt 0:01:06]} Nxd4 {[%emt 0:09:41]} 22. Qc3 {[%emt 0:03:44]} dxe4 {[%emt 0:01:10]} 23. Rxe4 {[%emt 0:03:19]} Nf5 {[%emt 0:01:25]} 24. Rf4 {[%emt 0:01:55]} Nxg3 {[%emt 0:05:21]} 25. Kxg3 {[%emt 0:01:26]} g5 {[%emt 0:01:10]} 26. Rbf1 {[%emt 0:00:20]} gxf4+ {[%emt 0:04:00]} 27. Rxf4 {[%emt 0:08:09]} f6 {[%emt 0:00:38]} 28. Qc4+ {[%emt 0:01:00]} Kg7 {[%emt 0:01:30]} 29. Nc5 {[%emt 0:10:01]} Qe5 {[%emt 0:01:59]} 30. Kf2 {[%emt 0:03:32]} f5 {[%emt 0:06:04]} 31. Rh4 {[%emt 0:15:10]} b6 {[%emt 0:01:26]} 32. Qc1 {[%emt 0:00:16]} Qf6 {[%emt 0:08:32]} 33. Qh1 {[%emt 0:00:28]} bxc5 {[%emt 0:06:38]} 34. Rh7+ {[%emt 0:03:05]} Kg8 {[%emt 0:00:09]} 35. Bc4+ {[%emt 0:03:41]} Be6 {[%emt 0:00:06]} 36. Bxe6+ {[%emt 0:00:13]} Qxe6 {[%emt 0:00:01]} 37. Rh8+ {[%emt 0:00:36]} Kf7 {[%emt 0:00:37]} 38. Rh7+ {[%emt 0:03:05]} Ke8 {[%emt 0:00:08]} 39. Qh5+ {[%emt 0:00:02]} Kd8 {[%emt 0:01:38]} 40. Qg5+ {[%emt 0:00:18]} Qf6 {[%emt 0:01:19]} 41. Qxf6+ {[%emt 0:02:54]} Rxf6 {[%emt 0:00:02]} 42. Rh8+ {[%emt 0:00:01]} Kc7 {[%emt 0:00:24]} 43. Rxa8 {[%emt 0:00:10]} Kb7 {[%emt 0:00:04]} 44. Re8 {[%emt 0:00:29]} cxb4 {[%emt 0:00:04]} 45. Kf3 {[%emt 0:00:08]} a5 {[%emt 0:00:51]} 46. Kf4 {[%emt 0:00:06]} Rg6 {[%emt 0:00:19]} 47. Re2 {[%emt 0:00:05]} Rf6 {[%emt 0:01:02]} 48. Re8 {[%emt 0:01:09]} Rf7 {[%emt 0:00:20]} 49. Rg8 {[%emt 0:00:32]} Kb6 {[%emt 0:01:16]} 50. Ke5 {[%emt 0:00:43]} f4 {[%emt 0:02:16]} 0-1

[Event "Marienbad Open-B1 2019"]
[Site "Marianske Lazne"]
[Date "2019.01.23"]
[Round "6"]
[White "Patil, Mitali"]
[Black "Florstedt, Johannes"]
[Result "0-1"]
[ECO "B22"]
[WhiteElo "2062"]
[BlackElo "2320"]
[Annotator "NA"]
[PlyCount "102"]
[EventDate "2019.01.17"]
[EventType "tourn"]
[EventCountry "CZE"]
[SourceTitle "playchess.com"]
[Source "ChessBase"]
[SourceQuality "1"]
[TimeControl "40/5400+30:1800+30"]

1. e4 {[%emt 0:00:00]} c5 {[%emt 0:00:00]} 2. c3 {[%emt 0:00:00]} Nf6 {[%emt 0:00:00]} 3. e5 {[%emt 0:00:00]} Nd5 {[%emt 0:00:00]} 4. d4 {[%emt 0:00:00]} cxd4 {[%emt 0:00:00]} 5. Qxd4 {[%emt 0:00:00]} e6 {[%emt 0:00:03]} 6. Nf3 {[%emt 0:00:00]} Nc6 {[%emt 0:00:14]} 7. Qe4 {[%emt 0:00:00]} f5 {[%emt 0:00:16]} 8. Qe2 {[%emt 0:00:03]} b5 {[%emt 0:00:31]} 9. g3 {[%emt 0:14:08]} a5 {[%emt 0:02:42]} 10. Bg2 {[%emt 0:04:23]} Be7 {[%emt 0:13:34]} 11. O-O {[%emt 0:07:03]} O-O {[%emt 0:00:22]} 12. Nd4 Nxd4 {[%emt 0:00:56]} 13. cxd4 {[%emt 0:11:36]} Bb7 {[%emt 0:07:44]} 14. Nc3 {[%emt 0:13:05]} Nxc3 {[%emt 0:00:33]} 15. bxc3 {[%emt 0:00:02]} Bxg2 {[%emt 0:08:51]} 16. Kxg2 {[%emt 0:00:02]} Qb6 {[%emt 0:00:32]} 17. Be3 {[%emt 0:01:37]} Qc6+ {[%emt 0:01:40]} 18. Kg1 {[%emt 0:01:46]} Rab8 {[%emt 0:01:41]} 19. Rab1 {[%emt 0:02:52]} Rfc8 {[%emt 0:01:00]} 20. Rb2 {[%emt 0:03:11]} Qd5 {[%emt 0:10:28]} 21. Rfb1 {[%emt 0:02:07]} Rc4 {[%emt 0:02:09]} 22. f3 {[%emt 0:14:31]} Ba3 {[%emt 0:12:04]} 23. Rb3 {[%emt 0:00:16]} Bf8 {[%emt 0:00:06]} 24. Kf2 {[%emt 0:05:40]} a4 {[%emt 0:02:07]} 25. R3b2 {[%emt 0:00:08]} Ba3 {[%emt 0:00:41]} 26. Rc2 {[%emt 0:00:07]} Rbc8 {[%emt 0:01:01]} 27. Bc1 {[%emt 0:04:10]} Rxc3 {[%emt 0:07:51]} 28. Rxc3 {[%emt 0:00:15]} Rxc3 {[%emt 0:00:19]} 29. Rxb5 {[%emt 0:00:32]} Qc6 {[%emt 0:03:55]} 30. Bxa3 {[%emt 0:07:06]} Rc2 {[%emt 0:00:23]} 31. Rb8+ {[%emt 0:00:08]} Kf7 {[%emt 0:00:06]} 32. Bc5 {[%emt 0:00:19]} Rxe2+ {[%emt 0:00:10]} 33. Kxe2 {[%emt 0:00:01]} Qa6+ {[%emt 0:01:42]} 34. Kf2 {[%emt 0:00:11]} Qc4 {[%emt 0:03:21]} 35. a3 {[%emt 0:01:34]} Qc2+ {[%emt 0:00:18]} 36. Kg1 {[%emt 0:00:27]} Qd1+ {[%emt 0:00:09]} 37. Kf2 {[%emt 0:00:20]} Qd2+ {[%emt 0:00:07]} 38. Kg1 {[%emt 0:00:16]} Qe1+ {[%emt 0:00:10]} 39. Kg2 {[%emt 0:00:24]} Qe2+ {[%emt 0:00:05]} 40. Kg1 {[%emt 0:00:09]} Qxf3 {[%emt 0:00:08]} 41. Rd8 {[%emt 0:33:56]} Qd5 {[%emt 0:30:11]} 42. Rb8 {[%emt 0:01:05]} Kg6 {[%emt 0:00:33]} 43. Rb4 {[%emt 0:00:29]} Qf3 {[%emt 0:00:42]} 44. Rb6 {[%emt 0:00:21]} Kh5 {[%emt 0:00:35]} 45. Rb2 {[%emt 0:01:31]} Kg4 {[%emt 0:01:34]} 46. Rf2 {[%emt 0:00:24]} Qe3 {[%emt 0:00:19]} 47. Kg2 {[%emt 0:00:10]} Qe4+ {[%emt 0:00:07]} 48. Kf1 {[%emt 0:04:55]} g5 {[%emt 0:00:07]} 49. Kg1 {[%emt 0:00:46]} h5 {[%emt 0:01:31]} 50. h4 {[%emt 0:00:29]} Kxg3 {[%emt 0:00:38]} 51. hxg5 {[%emt 0:00:32]} Qe3 {[%emt 0:00:12]} 0-1

[Event "Marienbad Open-B1 2019"]
[Site "Marianske Lazne"]
[Date "2019.01.24"]
[Round "7"]
[White "Florstedt, Johannes"]
[Black "Sernecki, Franciszek"]
[Result "1/2-1/2"]
[ECO "B36"]
[WhiteElo "2320"]
[BlackElo "2278"]
[Annotator "NA"]
[PlyCount "78"]
[EventDate "2019.01.17"]
[EventType "tourn"]
[EventCountry "CZE"]
[SourceTitle "playchess.com"]
[Source "ChessBase"]
[SourceQuality "1"]
[TimeControl "40/5400+30:1800+30"]

1. e4 {[%emt 0:00:00]} c5 {[%emt 0:00:00]} 2. Nf3 {[%emt 0:00:00]} Nc6 {[%emt 0:00:00]} 3. d4 {[%emt 0:00:00]} cxd4 {[%emt 0:00:00]} 4. Nxd4 {[%emt 0:00:00]} g6 {[%emt 0:00:00]} 5. c4 {[%emt 0:00:00]} Nf6 {[%emt 0:00:00]} 6. Nc3 {[%emt 0:00:05]} Nxd4 {[%emt 0:00:00]} 7. Qxd4 {[%emt 0:00:29]} d6 {[%emt 0:00:00]} 8. Be3 {[%emt 0:00:17]} Bg7 {[%emt 0:00:03]} 9. f3 {[%emt 0:00:10]} O-O {[%emt 0:00:32]} 10. Qd2 {[%emt 0:00:03]} a5 {[%emt 0:01:47]} 11. Na4 {[%emt 0:00:21]} Nd7 {[%emt 0:04:54]} 12. O-O-O {[%emt 0:04:12]} Qc7 {[%emt 0:07:02]} 13. Kb1 {[%emt 0:00:42]} Nc5 {[%emt 0:03:13]} 14. Nxc5 {[%emt 0:03:33]} dxc5 {[%emt 0:00:45]} 15. Qd5 {[%emt 0:11:54]} Bd4 {[%emt 0:07:35]} 16. Bxd4 {[%emt 0:00:38]} Rd8 {[%emt 0:01:37]} 17. Qg5 {[%emt 0:03:07]} Rxd4 {[%emt 0:03:35]} 18. Rxd4 {[%emt 0:00:58]} cxd4 {[%emt 0:01:05]} 19. h4 {[%emt 0:13:00]} Be6 {[%emt 0:08:11]} 20. h5 {[%emt 0:01:44]} f6 {[%emt 0:01:50]} 21. Qd2 {[%emt 0:15:49]} g5 {[%emt 0:01:18]} 22. Bd3 {[%emt 0:04:00]} Rc8 {[%emt 0:04:26]} 23. Rc1 {[%emt 0:03:21]} b6 {[%emt 0:06:01]} 24. e5 {[%emt 0:04:53]} Qxe5 {[%emt 0:13:55]} 25. Re1 {[%emt 0:00:25]} Qd6 {[%emt 0:00:11]} 26. Qc2 {[%emt 0:10:31]} Bf7 {[%emt 0:04:37]} 27. Bxh7+ {[%emt 0:04:13]} Kh8 {[%emt 0:00:20]} 28. b3 {[%emt 0:01:15]} Rxc4 {[%emt 0:07:33]} 29. Qe4 {[%emt 0:04:39]} Rc7 {[%emt 0:13:33]} 30. Bg6 {[%emt 0:00:05]} e5 {[%emt 0:06:01]} 31. Qa8+ {[%emt 0:09:34]} Kg7 {[%emt 0:00:33]} 32. Bf5 {[%emt 0:00:07]} Bxh5 {[%emt 0:01:44]} 33. Rh1 {[%emt 0:00:13]} d3 {[%emt 0:00:49]} 34. Rxh5 {[%emt 0:03:36]} Rc1+ {[%emt 0:00:08]} 35. Kxc1 {[%emt 0:00:11]} Qc5+ {[%emt 0:00:12]} 36. Kb2 {[%emt 0:00:21]} Qc2+ {[%emt 0:00:37]} 37. Ka3 {[%emt 0:00:06]} Qc5+ {[%emt 0:00:15]} 38. Kb2 {[%emt 0:00:05]} Qc2+ {[%emt 0:00:54]} 39. Ka3 {[%emt 0:00:05]} Qc5+ {[%emt 0:00:02]} 1/2-1/2

[Event "Marienbad Open-B1 2019"]
[Site "Marianske Lazne"]
[Date "2019.01.24"]
[Round "7"]
[White "Kornitzky, Tino"]
[Black "Patil, Mitali"]
[Result "0-1"]
[ECO "E92"]
[WhiteElo "2133"]
[BlackElo "2062"]
[Annotator "NA"]
[PlyCount "64"]
[EventDate "2019.01.17"]
[EventType "tourn"]
[EventCountry "CZE"]
[SourceTitle "playchess.com"]
[Source "ChessBase"]
[SourceQuality "1"]
[TimeControl "40/5400+30:1800+30"]

1. d4 {[%emt 0:00:00]} Nf6 {[%emt 0:00:00]} 2. c4 {[%emt 0:00:00]} g6 {[%emt 0:00:00]} 3. Nc3 {[%emt 0:00:00]} Bg7 {[%emt 0:00:00]} 4. e4 {[%emt 0:00:00]} d6 {[%emt 0:00:00]} 5. Nf3 {[%emt 0:00:00]} O-O {[%emt 0:00:00]} 6. Be2 {[%emt 0:00:01]} e5 {[%emt 0:01:11]} 7. d5 {[%emt 0:00:08]} a5 {[%emt 0:00:32]} 8. Bg5 {[%emt 0:00:10]} h6 {[%emt 0:00:16]} 9. Be3 {[%emt 0:01:32]} Ng4 {[%emt 0:01:38]} 10. Bd2 {[%emt 0:00:13]} f5 {[%emt 0:00:09]} 11. h3 {[%emt 0:00:14]} Nf6 {[%emt 0:00:10]} 12. exf5 {[%emt 0:00:18]} gxf5 {[%emt 0:00:06]} 13. Qc1 {[%emt 0:00:21]} f4 {[%emt 0:16:35]} 14. g3 {[%emt 0:02:39]} Nh5 {[%emt 0:27:11]} 15. g4 {[%emt 0:10:48]} Nf6 {[%emt 0:00:48]} 16. Qc2 {[%emt 0:06:05]} Na6 {[%emt 0:02:14]} 17. a3 {[%emt 0:05:28]} Nc5 {[%emt 0:01:27]} 18. g5 {[%emt 0:04:50]} hxg5 {[%emt 0:00:40]} 19. Nxg5 {[%emt 0:02:07]} Qe8 {[%emt 0:06:39]} 20. O-O-O {[%emt 0:18:33]} a4 {[%emt 0:07:07]} 21. Kb1 {[%emt 0:10:35]} Nb3 {[%emt 0:05:51]} 22. Ka2 {[%emt 0:07:10]} Nd4 {[%emt 0:01:55]} 23. Qb1 {[%emt 0:01:15]} Nxe2 {[%emt 0:04:41]} 24. Nxe2 {[%emt 0:00:26]} Qh5 {[%emt 0:00:08]} 25. Rhg1 {[%emt 0:06:07]} Qxe2 {[%emt 0:01:29]} 26. Ne6 {[%emt 0:02:53]} Bxe6 {[%emt 0:02:44]} 27. Qg6 {[%emt 0:00:46]} Bg4 {[%emt 0:02:43]} 28. hxg4 {[%emt 0:00:15]} Qxc4+ {[%emt 0:02:08]} 29. Ka1 {[%emt 0:00:01]} Qe4 {[%emt 0:02:14]} 30. Qg5 {[%emt 0:02:40]} Kf7 {[%emt 0:02:06]} 31. f3 {[%emt 0:02:03]} Qg6 {[%emt 0:04:18]} 32. Qh4 {[%emt 0:00:21]} Nxd5 {[%emt 0:00:42]} 0-1